bitfinex/quotes_BTCUSD_20260126
["timestamp","ask_amount","ask_price","bid_price","bid_amount"]
[1769394359370,0.01138252,87854.0,87836.0,1.04469926]
[1769394359570,0.01138265,87853.0,87836.0,1.04469926]
[1769394359730,0.51862224,87853.0,87836.0,1.04469926]
[1769394360189,0.53000489,87853.0,87836.0,1.04469926]
[1769394360402,0.51862224,87853.0,87837.0,0.13265459]
[1769394360960,0.51862224,87855.0,87837.0,0.13265459]
[1769394361158,0.64576252,87855.0,87837.0,0.13265459]
[1769394361360,0.13852267,87855.0,87837.0,0.13265459]
[1769394361568,0.53000489,87853.0,87837.0,0.13265459]
[1769394361763,0.63720119,87850.0,87837.0,0.13265459]
[1769394363815,1.15582343,87850.0,87834.0,0.91204467]
[1769394364150,0.01138316,87849.0,87831.0,0.1276623]
[1769394364374,1.15582343,87850.0,87832.0,0.15029235]
[1769394364556,1.16720646,87850.0,87832.0,0.15029235]
[1769394364685,0.01138316,87849.0,87832.0,0.15029235]
[1769394364891,1.16720646,87850.0,87832.0,0.15029235]
[1769394365093,1.15582343,87850.0,87834.0,0.12752161]
[1769394365299,0.63720119,87850.0,87835.0,0.9630717]
[1769394366369,0.65121399,87857.0,87837.0,0.9630717]
[1769394366585,0.02732925,87854.0,87838.0,0.12752161]
[1769394367186,0.64858422,87850.0,87838.0,0.12752161]
[1769394367408,0.63720119,87850.0,87838.0,0.12752161]
[1769394367784,0.0113829,87851.0,87838.0,0.12752161]
[1769394368192,0.63720119,87850.0,87838.0,0.12752161]
[1769394368845,0.64858422,87850.0,87838.0,0.12752161]
[1769394369349,0.01138316,87849.0,87838.0,0.12752161]
[1769394369502,0.01138303,87850.0,87838.0,0.12752161]
[1769394369701,0.53000502,87852.0,87838.0,0.12752161]
[1769394370153,0.01138303,87850.0,87838.0,0.12752161]
[1769394370361,0.0113829,87851.0,87838.0,0.12752161]
[1769394370820,0.01138239,87855.0,87838.0,1.09059331]
[1769394370957,0.11390005,87854.0,87838.0,1.09059331]
[1769394371159,0.14397388,87857.0,87839.0,0.12752161]
[1769394371404,0.11389821,87856.0,87839.0,0.12752161]
[1769394371713,0.1252806,87855.0,87839.0,0.12752161]
[1769394371868,0.01138239,87855.0,87839.0,0.12752161]
[1769394372762,0.01138226,87856.0,87839.0,0.12752161]
[1769394372967,0.12528009,87855.0,87839.0,0.12752161]
[1769394373247,0.01138239,87855.0,87839.0,0.12752161]
[1769394373415,0.01138252,87854.0,87840.0,0.12752161]
[1769394373822,0.01138226,87856.0,87841.0,0.12752161]
[1769394374026,0.01138252,87854.0,87841.0,0.12752161]
[1769394374203,0.01138226,87856.0,87841.0,0.12752161]
[1769394374566,0.01138252,87854.0,87841.0,0.12752161]
[1769394374743,0.01138239,87855.0,87841.0,0.12752161]
[1769394374898,0.01138252,87854.0,87841.0,0.12752161]
[1769394375101,0.01138239,87855.0,87841.0,0.12752161]
[1769394375505,0.01138252,87854.0,87841.0,0.12752161]
[1769394375706,0.01138265,87853.0,87841.0,0.12752161]
[1769394375917,0.01138265,87853.0,87833.0,0.12752161]
[1769394375918,0.01138278,87852.0,87833.0,0.12752161]
[1769394376105,0.63720119,87850.0,87835.0,0.12752161]
[1769394376563,0.01138265,87853.0,87836.0,0.95253522]
[1769394376742,0.01138265,87853.0,87837.0,0.92976552]
[1769394376943,0.01138265,87853.0,87838.0,0.1285332]
[1769394377456,0.53000476,87854.0,87838.0,0.1285332]
[1769394378595,0.01138278,87852.0,87838.0,0.1285332]
[1769394378804,0.0113829,87851.0,87838.0,0.1285332]
[1769394379934,0.01138265,87853.0,87838.0,0.15130238]
[1769394380307,0.03871125,87858.0,87839.0,0.92976552]
[1769394380532,0.01138239,87855.0,87842.0,0.1285332]
[1769394380658,0.01138213,87857.0,87842.0,0.1285332]
[1769394380860,0.03871125,87858.0,87842.0,0.1285332]
[1769394380861,0.1526076,87856.0,87842.0,0.1285332]
[1769394381174,0.01138239,87855.0,87842.0,0.1285332]
[1769394381377,0.01138252,87854.0,87842.0,0.1285332]
[1769394381618,0.01138239,87855.0,87842.0,0.1285332]
[1769394381998,0.02732925,87855.0,87842.0,0.1285332]
[1769394382407,0.03871164,87855.0,87842.0,0.1285332]
[1769394382584,0.02732925,87855.0,87842.0,0.1285332]
[1769394382993,0.03871138,87857.0,87842.0,0.1285332]
[1769394383230,0.13691894,87859.0,87842.0,0.1285332]
[1769394383429,0.16424819,87859.0,87845.0,0.92976552]
[1769394383631,0.16424819,87859.0,87847.0,1.05829872]
[1769394384422,0.16424819,87859.0,87836.0,0.05692367]
[1769394384423,0.16424819,87859.0,87837.0,0.01138472]
[1769394384742,0.16424819,87859.0,87840.0,0.1285332]
[1769394384743,0.17563006,87859.0,87840.0,0.1285332]
[1769394384944,0.011382,87858.0,87841.0,0.1285332]
[1769394385126,0.13691894,87859.0,87842.0,0.92976552]
[1769394385331,0.000222,87863.0,87851.0,0.92976552]
[1769394385677,0.000222,87863.0,87856.0,0.1285332]
[1769394386148,0.000222,87863.0,87849.0,0.63674023]
[1769394386287,0.000222,87863.0,87850.0,1.05829872]
[1769394386486,0.000222,87863.0,87851.0,0.1285332]
[1769394386678,0.000222,87863.0,87852.0,0.1285332]
[1769394386881,0.63674023,87862.0,87852.0,0.1285332]
[1769394387058,0.000222,87863.0,87852.0,0.1285332]
[1769394387578,0.000222,87863.0,87854.0,0.1285332]
[1769394387775,0.000222,87863.0,87856.0,0.1285332]
[1769394388170,0.000222,87863.0,87856.0,1.05829872]
[1769394388608,0.000222,87863.0,87857.0,0.1285332]
[1769394388810,0.000222,87863.0,87857.0,1.05829872]
[1769394389643,0.000222,87863.0,87850.0,1.56650575]
[1769394389843,0.000222,87863.0,87851.0,0.1285332]
[1769394390148,0.000222,87863.0,87851.0,0.92976552]
[1769394390357,0.000222,87863.0,87852.0,0.1285332]
[1769394390503,0.000222,87863.0,87852.0,1.05829872]
[1769394390708,0.63674023,87862.0,87852.0,0.1285332]
[1769394390904,0.000222,87863.0,87849.0,0.17488]
[1769394391107,0.01138148,87862.0,87849.0,0.17488]
[1769394391332,0.88060718,87860.0,87849.0,0.17488]
[1769394391646,0.63674023,87860.0,87849.0,0.17488]
[1769394391829,0.12374106,87862.0,87846.0,0.02276711]
[1769394391993,0.000222,87863.0,87847.0,1.05829872]
[1769394392203,0.000222,87863.0,87848.0,0.15129979]
[1769394392398,0.000222,87863.0,87851.0,0.1285332]
[1769394392615,0.01137993,87874.0,87855.0,0.1285332]
[1769394392864,0.01138018,87872.0,87859.0,0.1285332]
[1769394393300,0.01138031,87871.0,87859.0,0.1285332]
[1769394393500,0.01137993,87874.0,87859.0,0.1285332]
[1769394393633,0.01138018,87872.0,87859.0,0.1285332]
[1769394393833,0.01138044,87870.0,87850.0,0.63674023]
[1769394394031,0.01138044,87870.0,87850.0,0.12476875]
[1769394394032,0.0113807,87868.0,87850.0,0.12476875]
[1769394394232,0.01138057,87869.0,87851.0,0.12462806]
[1769394394436,0.01138057,87869.0,87852.0,0.12462806]
[1769394395073,0.01138109,87865.0,87854.0,0.12462806]
[1769394395291,0.01138083,87867.0,87854.0,0.12462806]
[1769394395419,0.06828429,87868.0,87854.0,0.12462806]
[1769394395420,0.0113807,87868.0,87854.0,0.12462806]
[1769394395623,0.01138135,87863.0,87850.0,0.00014069]
[1769394395825,0.01138187,87859.0,87850.0,0.00014069]
[1769394396029,0.01236126,87857.0,87850.0,0.00014069]
[1769394396276,0.02374339,87857.0,87850.0,0.00014069]
[1769394396493,0.01138226,87856.0,87850.0,0.00014069]
[1769394396650,0.01236126,87857.0,87850.0,0.00014069]
[1769394398286,0.01236126,87864.0,87850.0,0.00014069]
[1769394398691,0.01138135,87863.0,87850.0,0.00014069]
[1769394398892,0.02374248,87864.0,87850.0,0.00014069]
[1769394399075,0.01138135,87863.0,87850.0,0.00014069]
[1769394399454,0.02374248,87864.0,87850.0,0.00014069]
[1769394399658,0.01138135,87863.0,87850.0,0.00014069]
[1769394399892,0.02374248,87864.0,87850.0,0.00014069]
[1769394400094,0.01138122,87864.0,87851.0,0.9450997]
[1769394400306,0.03871034,87865.0,87850.0,0.12476875]
[1769394400509,0.03871034,87865.0,87850.0,0.14753482]
[1769394400731,0.02732925,87865.0,87850.0,0.14753482]
[1769394401411,0.0113807,87868.0,87851.0,0.9450997]
[1769394401625,0.01236126,87868.0,87851.0,0.9450997]
[1769394401835,0.01138083,87867.0,87851.0,0.9450997]
[1769394402043,0.01236126,87868.0,87851.0,0.9450997]
[1769394402224,0.0001468,87876.0,87851.0,0.9450997]
[1769394402469,0.0001468,87876.0,87850.0,0.00014069]
[1769394402470,0.0001468,87876.0,87862.0,0.12462806]
[1769394402693,0.0001468,87876.0,87864.0,0.12462806]
[1769394402890,0.01997624,87875.0,87864.0,0.12462806]
[1769394403085,0.01,87864.0,87853.0,0.12462806]
[1769394403603,0.64533667,87870.0,87853.0,0.9450997]
[1769394403769,0.64533667,87870.0,87854.0,0.12462806]
[1769394403947,0.00859644,87870.0,87854.0,0.96786474]
[1769394404149,0.01137993,87874.0,87855.0,0.96786448]
[1769394404352,0.01138005,87873.0,87856.0,0.12462806]
[1769394404561,0.01138031,87871.0,87856.0,0.12462806]
[1769394404787,0.01138018,87872.0,87856.0,0.12462806]
[1769394404988,0.01138044,87870.0,87856.0,0.12462806]
[1769394405522,0.00859644,87873.0,87857.0,0.9450997]
[1769394405715,0.01997649,87873.0,87858.0,0.12462806]
[1769394406076,0.01137993,87874.0,87860.0,0.12462806]
[1769394406273,0.0113798,87875.0,87860.0,0.12462806]
[1769394406490,0.01138044,87870.0,87860.0,0.12462806]
[1769394406665,0.00859644,87874.0,87860.0,0.12462806]
[1769394406865,0.01138018,87872.0,87860.0,0.12462806]
[1769394407074,0.01138018,87872.0,87860.0,0.12415076]
[1769394407281,0.0684252,87876.0,87860.0,0.12415076]
[1769394407611,0.01137993,87874.0,87860.0,0.12415076]
[1769394407808,0.0113798,87875.0,87860.0,0.12415076]
[1769394407991,0.01152647,87876.0,87860.0,0.12415076]
[1769394407992,0.0001468,87876.0,87860.0,0.9450997]
[1769394408193,0.0001468,87876.0,87861.0,0.9450997]
[1769394408395,0.0001468,87876.0,87863.0,0.9450997]
[1769394408600,0.0001468,87876.0,87864.0,0.12462806]
[1769394409003,0.01152647,87876.0,87864.0,0.12462806]
[1769394409816,0.0001468,87876.0,87864.0,0.12462806]
[1769394410051,0.01152647,87876.0,87864.0,0.12462806]
[1769394410256,0.0001468,87876.0,87864.0,0.12462806]
[1769394410419,0.0113798,87875.0,87864.0,0.12462806]
[1769394410615,0.01138005,87873.0,87864.0,0.12462806]
[1769394410817,0.01138018,87872.0,87854.0,0.12462806]
[1769394411023,0.01138018,87872.0,87855.0,0.12462806]
[1769394411223,0.63674023,87870.0,87855.0,0.12462806]
[1769394411435,0.01138057,87869.0,87856.0,0.17484]
[1769394411641,0.01138044,87870.0,87857.0,0.12462806]
[1769394411841,0.01997675,87871.0,87857.0,0.12462806]
[1769394412702,0.01138044,87870.0,87857.0,0.12462806]
[1769394412901,0.01997675,87871.0,87857.0,0.12462806]
[1769394413039,0.01138057,87869.0,87857.0,0.12462806]
[1769394413384,0.06828097,87873.0,87857.0,1.06972776]
[1769394413586,0.01138031,87871.0,87857.0,1.06972776]
[1769394413762,0.01138044,87870.0,87858.0,0.12462806]
[1769394414153,0.01138031,87871.0,87858.0,0.12462806]
[1769394414354,0.01138044,87870.0,87858.0,0.12462806]
[1769394414550,0.0113807,87868.0,87858.0,0.12462806]
[1769394414819,0.01138083,87867.0,87854.0,0.17484]
[1769394415025,0.01138083,87867.0,87853.0,0.12462806]
[1769394415329,0.01138109,87865.0,87853.0,0.12462806]
[1769394415522,0.00859644,87867.0,87853.0,0.12462806]
[1769394416302,0.00859644,87867.0,87854.0,0.1473931]
[1769394416705,0.0001468,87876.0,87857.0,0.63674023]
[1769394416927,0.01137993,87874.0,87861.0,0.12462806]
[1769394417356,0.01138005,87873.0,87861.0,0.12462806]
[1769394417553,0.01997637,87874.0,87861.0,0.12462806]
[1769394417729,0.01137993,87874.0,87861.0,0.12462806]
[1769394417927,0.01997637,87874.0,87861.0,0.12462806]
[1769394418152,0.01138018,87872.0,87861.0,0.12462806]
[1769394418308,0.01138122,87864.0,87861.0,0.12462806]
[1769394418515,0.01138057,87869.0,87850.0,0.63688092]
[1769394418516,0.01,87861.0,87851.0,0.12462806]
[1769394419043,0.00859644,87865.0,87851.0,0.12462806]
[1769394419252,0.0113807,87868.0,87852.0,0.12462806]
[1769394419676,0.02840251,87868.0,87852.0,0.12462806]
[1769394419832,0.01138083,87867.0,87852.0,0.12462806]
[1769394420044,0.02840251,87868.0,87852.0,0.12462806]
[1769394420268,0.01702181,87868.0,87853.0,0.14739336]
[1769394420905,0.01138057,87869.0,87853.0,0.14739336]
[1769394421150,0.64812067,87870.0,87855.0,0.12462806]
[1769394421349,0.01138057,87869.0,87857.0,0.12462806]
[1769394421891,0.63674023,87870.0,87857.0,0.12462806]
[1769394422067,0.01138005,87873.0,87857.0,0.12462806]
[1769394422275,0.01138031,87871.0,87857.0,0.9450997]
[1769394422630,0.01138031,87871.0,87858.0,0.12462806]
[1769394422838,0.01702181,87875.0,87858.0,0.12462806]
[1769394422839,0.01470069,87900.0,87883.0,0.9450997]
[1769394423028,0.01137734,87894.0,87884.0,0.11462806]
[1769394423186,0.64811757,87894.0,87868.0,0.0113807]
[1769394423387,0.01137798,87889.0,87865.0,0.91142287]
[1769394423611,0.01137798,87889.0,87859.0,0.01138187]
[1769394423612,0.01137967,87876.0,87857.0,0.0002188]
[1769394423814,0.01138174,87860.0,87857.0,0.0002188]
[1769394424159,0.01138174,87860.0,87844.0,0.04552]
[1769394424160,0.0865677,87860.0,87844.0,0.04552]
[1769394424306,0.0001852,87878.0,87853.0,0.91142287]
[1769394424307,0.01138083,87867.0,87853.0,0.91142287]
[1769394424491,0.01138044,87870.0,87854.0,0.13150305]
[1769394424692,0.01138044,87870.0,87856.0,0.13150305]
[1769394424892,0.01138031,87871.0,87858.0,0.13150305]
[1769394425296,0.01137954,87877.0,87859.0,0.91142287]
[1769394425532,0.01137954,87877.0,87844.0,0.04566071]
[1769394425533,0.01137954,87877.0,87863.0,0.13150305]
[1769394425738,0.01137993,87874.0,87864.0,0.13150305]
[1769394425932,0.01137967,87876.0,87864.0,0.13150305]
[1769394426134,0.01153914,87877.0,87864.0,0.13150305]
[1769394426135,0.0001596,87877.0,87864.0,0.13150305]
[1769394426790,0.0001596,87877.0,87865.0,0.91142287]
[1769394426994,0.01470069,87900.0,87852.0,0.17484]
[1769394426995,0.01137798,87889.0,87869.0,0.13150305]
[1769394427207,0.0002911,87894.0,87871.0,1.04292592]
[1769394427416,0.0002911,87894.0,87868.0,0.0113807]
[1769394427417,0.01137747,87893.0,87882.0,0.13150305]
[1769394427624,0.0002911,87894.0,87882.0,0.13150305]
[1769394427830,0.0002911,87894.0,87883.0,0.13150305]
[1769394428246,0.0002911,87894.0,87879.0,0.63674023]
[1769394428247,0.0002911,87894.0,87885.0,0.13150305]
[1769394428454,0.00076048,87894.0,87886.0,0.91142287]
[1769394428705,0.00076048,87894.0,87887.0,0.13150305]
[1769394429514,0.05695326,87887.0,87873.0,0.13150305]
[1769394429718,0.05695326,87887.0,87877.0,0.13150305]
[1769394429944,0.05695326,87887.0,87879.0,0.91142287]
[1769394430160,0.05695326,87887.0,87870.0,0.6936424]
[1769394430161,0.05695326,87887.0,87873.0,0.30634305]
[1769394430376,0.05695326,87887.0,87874.0,0.91142287]
[1769394430597,0.05695326,87887.0,87875.0,0.13150305]
[1769394430810,0.05695326,87887.0,87876.0,0.91142287]
[1769394431052,0.05695326,87887.0,87877.0,1.04292592]
[1769394431260,0.05695326,87887.0,87878.0,0.13150305]
[1769394431467,0.00076048,87894.0,87887.0,0.01]
[1769394431671,0.00076048,87894.0,87888.0,0.91142287]
[1769394432094,0.01137488,87913.0,87892.0,0.91142287]
[1769394432301,0.01137552,87908.0,87894.0,0.13150305]
[1769394432506,0.01137552,87908.0,87894.0,1.04292592]
[1769394432708,0.01137552,87908.0,87894.0,1.04262592]
[1769394432858,0.01137565,87907.0,87894.0,1.04262592]
[1769394433070,0.01137552,87908.0,87894.0,1.04262592]
[1769394433247,0.01137591,87905.0,87894.0,1.04262592]
[1769394433445,0.01137604,87904.0,87894.0,0.13120305]
[1769394433720,0.01137591,87905.0,87888.0,1.04292592]
[1769394433923,0.01137591,87905.0,87889.0,1.04292592]
[1769394434107,0.01137514,87911.0,87891.0,0.91142287]
[1769394434337,0.01137539,87909.0,87894.0,0.13150305]
[1769394434547,0.01137552,87908.0,87895.0,1.04292592]
[1769394434758,0.01137527,87910.0,87895.0,1.04292592]
[1769394435179,0.01137552,87908.0,87895.0,1.04292592]
[1769394435355,0.01137552,87908.0,87890.0,1.5481631]
[1769394435356,0.01137591,87905.0,87890.0,1.5481631]
[1769394435564,0.88328367,87906.0,87882.0,0.91142287]
[1769394435767,0.88328367,87906.0,87884.0,0.91142287]
[1769394435768,0.01137604,87904.0,87884.0,0.91142287]
[1769394435975,0.01137604,87904.0,87886.0,0.13150305]
[1769394436176,0.87190789,87904.0,87886.0,0.13150305]
[1769394436803,0.87190789,87904.0,87886.0,0.90476944]
[1769394437010,0.87190789,87904.0,87887.0,0.13825399]
[1769394437384,0.87190789,87904.0,87887.0,0.90476944]
[1769394437585,0.12527371,87905.0,87889.0,0.90476944]
[1769394437783,0.01137539,87909.0,87894.0,0.90476944]
[1769394437986,0.01137539,87909.0,87882.0,0.01137889]
[1769394437987,0.01137565,87907.0,87882.0,0.01137889]
[1769394438202,0.01137591,87905.0,87885.0,0.13825399]
[1769394438419,1.02562323,87906.0,87887.0,0.13825399]
[1769394438626,1.02562323,87906.0,87888.0,1.04302343]
[1769394438829,0.01137591,87905.0,87888.0,1.04302343]
[1769394439147,1.02562323,87906.0,87889.0,0.13825399]
[1769394439336,0.01137591,87905.0,87889.0,0.13825399]
[1769394439695,1.01424745,87906.0,87890.0,0.63674023]
[1769394439903,1.01424745,87906.0,87890.0,1.67976366]
[1769394440313,1.01424745,87906.0,87890.0,1.04302343]
[1769394440512,1.02562323,87906.0,87890.0,1.67976366]
[1769394440747,0.01137617,87903.0,87890.0,1.04302343]
[1769394440947,0.01137604,87904.0,87890.0,1.04302343]
[1769394441192,0.87190789,87906.0,87890.0,0.90476944]
[1769394441399,0.01137591,87905.0,87891.0,0.13825399]
[1769394441820,0.01137643,87901.0,87891.0,0.13825399]
[1769394442032,0.0113763,87902.0,87891.0,0.13825399]
[1769394442381,0.01137578,87906.0,87891.0,1.04302343]
[1769394442588,0.14233956,87907.0,87891.0,1.04302343]
[1769394442800,0.87190789,87909.0,87892.0,1.04302343]
[1769394443214,0.88308328,87909.0,87892.0,0.90476944]
[1769394443430,0.01137565,87907.0,87893.0,1.04302343]
[1769394443645,0.88308328,87909.0,87894.0,0.13825399]
[1769394443863,0.00090007,87912.0,87895.0,0.90476944]
[1769394444078,0.00090007,87912.0,87898.0,0.13825399]
[1769394444298,0.00090007,87912.0,87888.0,0.1748]
[1769394444299,0.00090007,87912.0,87902.0,0.13825399]
[1769394444712,0.00090007,87912.0,87902.0,1.04302343]
[1769394445168,0.00090007,87912.0,87905.0,0.13825399]
[1769394445707,0.88398497,87912.0,87891.0,0.90476944]
[1769394445889,0.05687629,87911.0,87893.0,0.13825399]
[1769394446087,0.01137539,87909.0,87894.0,0.13825399]
[1769394446343,0.01137539,87909.0,87889.0,0.04552]
[1769394446344,0.01137643,87901.0,87889.0,0.1748]
[1769394446554,0.863552,87910.0,87889.0,0.1748]
[1769394446756,0.01137643,87901.0,87889.0,0.1748]
[1769394446974,0.0113763,87902.0,87889.0,0.1748]
[1769394447371,0.0113763,87902.0,87887.0,0.13825399]
[1769394447372,0.01137747,87893.0,87887.0,0.13825399]
[1769394447560,0.01137721,87895.0,87885.0,0.90476944]
[1769394447561,0.01137734,87894.0,87885.0,0.90476944]
[1769394447759,0.8948034,87894.0,87874.0,0.13825399]
[1769394447957,0.88848332,87883.0,87867.0,0.90476944]
[1769394448158,0.89986208,87883.0,87867.0,0.90476944]
[1769394448388,0.88848332,87883.0,87870.0,0.63604624]
[1769394448636,0.15371806,87885.0,87870.0,0.63604624]
[1769394448845,0.01137798,87889.0,87872.0,0.13825399]
[1769394449044,0.01137721,87895.0,87879.0,0.63604624]
[1769394449184,8.005e-05,87889.0,87882.0,0.90476944]
[1769394449408,8.005e-05,87889.0,87864.0,0.13825399]
[1769394449409,0.01137837,87886.0,87864.0,0.13825399]
[1769394449767,0.88848332,87885.0,87867.0,1.04302343]
[1769394449955,0.01137863,87884.0,87868.0,0.02074724]
[1769394450173,0.01137863,87884.0,87868.0,0.15900123]
[1769394450377,0.01137876,87883.0,87868.0,0.15900123]
[1769394450584,0.01137863,87884.0,87868.0,1.06377067]
[1769394450783,0.01137863,87884.0,87868.0,1.04302343]
[1769394450903,0.06827431,87881.0,87868.0,0.13825399]
[1769394451103,0.06827431,87881.0,87843.0,0.22767793]
[1769394451104,0.01137928,87879.0,87869.0,0.17476]
[1769394451513,0.17476,87900.0,87870.0,0.01542852]
[1769394451791,0.01137695,87897.0,87881.0,0.90476944]
[1769394451992,0.01137539,87909.0,87881.0,0.90476944]
[1769394452117,0.01137539,87909.0,87887.0,0.90476944]
[1769394452118,0.01137591,87905.0,87887.0,0.90476944]
[1769394452318,0.01137591,87905.0,87890.0,1.04302343]
[1769394452610,0.01137578,87906.0,87890.0,1.04302343]
[1769394452800,0.06825406,87907.0,87890.0,1.04302343]
[1769394452801,0.0113763,87902.0,87890.0,1.04302343]
[1769394453032,0.0113763,87902.0,87888.0,0.17476]
[1769394453559,0.01137643,87901.0,87888.0,0.17476]
[1769394453756,0.01137617,87903.0,87888.0,0.17476]
[1769394453976,0.01137604,87904.0,87888.0,0.31307326]
[1769394454172,0.15371547,87905.0,87888.0,0.31307326]
[1769394454620,0.01137604,87904.0,87888.0,0.31307326]
[1769394454995,0.01137604,87904.0,87888.0,1.27513715]
[1769394455229,0.01137617,87903.0,87888.0,1.27513715]
[1769394455443,0.01137527,87910.0,87891.0,0.96206389]
[1769394455714,0.01219499,87912.0,87897.0,0.13831326]
[1769394455715,0.01137514,87911.0,87897.0,0.13831326]
[1769394455914,0.00081998,87912.0,87899.0,0.96206389]
[1769394456116,0.01219499,87912.0,87899.0,1.10037715]
[1769394456340,0.00081998,87912.0,87899.0,1.10037715]
[1769394456571,0.00081998,87912.0,87900.0,0.13831326]
[1769394457532,0.01137384,87921.0,87901.0,0.96206389]
[1769394457738,0.0002911,87929.0,87905.0,0.96206389]
[1769394457739,0.01137307,87927.0,87905.0,0.96206389]
[1769394457983,0.01137307,87927.0,87909.0,0.96206389]
[1769394458287,0.06852803,87929.0,87906.0,0.17476]
[1769394458288,0.01137358,87923.0,87911.0,0.13831326]
[1769394458491,0.01137371,87922.0,87906.0,0.31307326]
[1769394458688,0.90442133,87925.0,87906.0,0.31307326]
[1769394458886,0.01137345,87924.0,87907.0,0.96206389]
[1769394459067,0.01137345,87924.0,87907.0,1.10037715]
[1769394459273,0.01137371,87922.0,87907.0,1.10037715]
[1769394459443,0.01137371,87922.0,87908.0,0.13831326]
[1769394459644,0.01148544,87924.0,87908.0,1.10037715]
[1769394459901,0.01137371,87922.0,87908.0,1.10037715]
[1769394460258,0.01137384,87921.0,87908.0,1.10037715]
[1769394460458,0.01137371,87922.0,87908.0,1.10037715]
[1769394460956,0.01137358,87923.0,87908.0,1.10037715]
[1769394461166,0.78579491,87925.0,87908.0,1.10037715]
[1769394461365,0.78579491,87925.0,87908.0,1.10051786]
[1769394461570,0.01137371,87922.0,87908.0,1.10051786]
[1769394461765,0.01137358,87923.0,87908.0,1.10051786]
[1769394461967,0.01137371,87922.0,87908.0,1.10051786]
[1769394462168,0.72892821,87925.0,87908.0,1.10051786]
[1769394462373,0.01137371,87922.0,87908.0,1.10051786]
[1769394462795,0.88233972,87925.0,87908.0,1.10051786]
[1769394462968,0.01137358,87923.0,87908.0,1.10051786]
[1769394463171,0.01137332,87925.0,87908.0,0.9622046]
[1769394463444,0.01137307,87927.0,87911.0,0.13831326]
[1769394463646,0.01137358,87923.0,87911.0,0.13831326]
[1769394464073,0.01137384,87921.0,87908.0,0.00014071]
[1769394464637,0.01137371,87922.0,87908.0,0.00014071]
[1769394465023,0.01137358,87923.0,87908.0,0.00014071]
[1769394465240,0.01137332,87925.0,87908.0,1.10051786]
[1769394465450,0.01137345,87924.0,87908.0,0.9622046]
[1769394465650,0.01137307,87927.0,87911.0,0.13831326]
[1769394465997,0.01137332,87925.0,87912.0,1.10037715]
[1769394466427,0.0113732,87926.0,87912.0,0.96206389]
[1769394466641,0.0113732,87926.0,87912.0,1.10037715]
[1769394466848,0.01137332,87925.0,87912.0,0.13831326]
[1769394467471,0.0113732,87926.0,87912.0,0.13831326]
[1769394467914,0.01137332,87925.0,87912.0,0.13831326]
[1769394468132,0.01137371,87922.0,87912.0,0.13831326]
[1769394468343,0.01137332,87925.0,87908.0,0.9622046]
[1769394468344,0.01137358,87923.0,87908.0,0.9622046]
[1769394468513,0.01137345,87924.0,87908.0,0.9622046]
[1769394468724,0.01137358,87923.0,87908.0,1.1369646]
[1769394468922,0.89792408,87915.0,87900.0,0.17476]
[1769394469134,0.14203819,87918.0,87900.0,1.13696465]
[1769394469539,0.14203819,87918.0,87901.0,0.13831326]
[1769394470102,0.14203819,87918.0,87902.0,0.02275261]
[1769394470318,0.14203819,87918.0,87901.0,0.13831326]
[1769394470529,0.89792408,87917.0,87901.0,0.13831326]
[1769394471589,0.89792408,87914.0,87900.0,0.00014076]
[1769394472595,0.14203819,87918.0,87900.0,0.79568344]
[1769394472817,0.01137371,87922.0,87904.0,0.13831326]
[1769394473057,0.89792408,87921.0,87905.0,0.16106509]
[1769394473264,0.89792408,87920.0,87905.0,0.16106509]
[1769394473694,0.89792408,87920.0,87910.0,0.63579249]
[1769394473914,0.89792408,87920.0,87911.0,0.02275028]
[1769394474485,0.38157218,87918.0,87897.0,0.32445021]
[1769394474674,0.38157218,87922.0,87910.0,0.63579249]
[1769394474878,0.53498408,87922.0,87911.0,0.02275028]
[1769394475082,0.52361037,87921.0,87911.0,0.02275028]
[1769394475850,0.14203819,87920.0,87911.0,0.02275028]
[1769394476054,0.52361037,87920.0,87911.0,0.02275028]
[1769394476205,0.53498434,87920.0,87911.0,0.02275028]
[1769394477330,0.01137436,87917.0,87910.0,0.63579249]
[1769394477532,0.53498447,87919.0,87911.0,0.01137384]
[1769394477785,0.53498447,87919.0,87908.0,0.01137384]
[1769394477960,0.01137164,87938.0,87922.0,0.96206389]
[1769394478276,0.14117862,87948.0,87920.0,0.63579249]
[1769394478277,0.03980121,87937.0,87920.0,0.63579249]
[1769394478481,0.0079254,87936.0,87920.0,0.63579249]
[1769394478692,0.01137229,87933.0,87910.0,0.63579249]
[1769394478895,0.11384937,87929.0,87910.0,0.63579249]
[1769394479115,0.21111775,87928.0,87919.0,0.63579249]
[1769394479316,0.22249069,87928.0,87919.0,0.63579249]
[1769394479544,0.22249069,87928.0,87911.0,0.13831326]
[1769394479730,0.19895763,87928.0,87911.0,0.13831326]
[1769394479880,0.19895763,87928.0,87918.0,0.63579249]
[1769394480089,0.01706821,87927.0,87919.0,0.96206389]
[1769394480284,0.17472,87932.0,87922.0,0.13831326]
[1769394480529,0.01706821,87931.0,87922.0,0.13831326]
[1769394480730,0.14134127,87929.0,87911.0,0.13831326]
[1769394480939,7.925e-05,87927.0,87912.0,0.02275002]
[1769394481113,7.925e-05,87926.0,87912.0,0.02275002]
[1769394481322,0.01714746,87926.0,87912.0,0.02275002]
[1769394481499,0.0001429,87934.0,87928.0,0.01]
[1769394481912,0.0001429,87934.0,87928.0,0.14831326]
[1769394482310,0.0001429,87934.0,87924.0,1.59785638]
[1769394482509,0.0001429,87934.0,87924.0,0.96206389]
[1769394482714,0.0001429,87934.0,87924.0,0.96220477]
[1769394483723,0.0001429,87934.0,87924.0,0.96212748]
[1769394484113,0.0001429,87934.0,87924.0,1.12373395]
[1769394487575,0.01151506,87934.0,87920.0,0.63579249]
[1769394487788,0.01706821,87933.0,87919.0,0.16160647]
[1769394487937,0.0284405,87933.0,87920.0,1.64870243]
[1769394488151,0.01137255,87931.0,87910.0,0.63579249]
[1769394488356,0.01151506,87934.0,87910.0,0.63579249]
[1769394488357,0.01137345,87924.0,87910.0,0.00011199]
[1769394488543,0.01137371,87922.0,87910.0,0.00011199]
[1769394488763,0.01137423,87918.0,87910.0,0.00011199]
[1769394488964,0.00784771,87916.0,87910.0,0.00011199]
[1769394489379,0.17732778,87917.0,87910.0,0.00011199]
[1769394489594,0.16595342,87917.0,87910.0,0.00011199]
[1769394489826,0.01137449,87916.0,87910.0,0.00011199]
[1769394490038,0.17732778,87917.0,87910.0,0.00011199]
[1769394490286,0.01137449,87916.0,87910.0,0.00011199]
[1769394490481,0.17472,87918.0,87910.0,0.00011199]
[1769394490684,0.01137449,87916.0,87910.0,0.00011199]
[1769394490881,0.01137462,87915.0,87910.0,0.00011199]
[1769394491115,0.17732804,87915.0,87910.0,0.00011199]
[1769394491311,0.16595342,87915.0,87910.0,0.00011199]
[1769394491965,0.16595342,87915.0,87910.0,5.6e-05]
[1769394492344,0.17472,87918.0,87910.0,5.6e-05]
[1769394492549,0.05689371,87922.0,87913.0,1.01290994]
[1769394492550,0.04552,87922.0,87913.0,1.01290994]
[1769394492706,0.01137164,87938.0,87918.0,1.02290994]
[1769394493046,0.01706821,87937.0,87923.0,1.01290994]
[1769394493208,0.01137177,87937.0,87923.0,1.17451641]
[1769394493637,0.01137164,87938.0,87923.0,1.17451641]